bitfinex/quotes_ETHUSD_20250806
["timestamp","ask_amount","ask_price","bid_price","bid_amount"]
[1754492482838,4.516,3640.2,3639.8,2.7474037]
[1754492483038,4.516,3640.3,3640.0,0.1376]
[1754492483221,0.1376,3640.5,3640.1,0.4454]
[1754492483425,2.74617486,3641.5,3640.8,2.74664908]
[1754492483636,0.1376,3641.1,3640.8,3.66864908]
[1754492484256,4.515,3641.2,3640.8,3.66864908]
[1754492484433,4.6526,3641.2,3640.8,3.66864908]
[1754492485731,7.39898142,3641.2,3640.6,0.1376]
[1754492485928,2.74651047,3641.0,3640.6,0.1376]
[1754492486140,4.6526,3641.2,3640.7,0.4454]
[1754492486141,4.515,3641.2,3640.7,0.4454]
[1754492486458,0.1376,3641.1,3640.8,0.922]
[1754492487519,0.1376,3641.1,3640.8,3.66864908]
[1754492487718,0.1376,3641.1,3640.8,0.922]
[1754492488572,2.88407565,3641.1,3640.5,2.88446328]
[1754492488939,2.74654202,3641.0,3640.5,1.0596]
[1754492489146,4.515,3641.2,3640.5,0.1376]
[1754492489345,0.1376,3640.6,3640.1,0.1376]
[1754492489538,0.1376,3640.6,3640.0,0.4454]
[1754492489737,0.1376,3640.6,3640.0,1.0596]
[1754492490020,0.1376,3640.6,3640.0,0.1376]
[1754492490253,0.04,3640.9,3640.5,2.88442596]
[1754492490438,0.04,3640.9,3640.6,2.74678014]
[1754492490738,2.7466811,3640.8,3640.5,0.1376]
[1754492490938,2.74670166,3640.8,3640.1,2.74714788]
[1754492491239,0.04,3640.9,3640.4,2.88454224]
[1754492491488,0.04,3640.9,3640.6,2.74675467]
[1754492491686,0.04,3640.9,3640.5,0.922]
[1754492491866,0.04,3640.9,3640.4,2.88453896]
[1754492491867,0.04,3640.9,3640.4,0.1376]
[1754492492182,2.78659491,3640.9,3640.3,2.74700362]
[1754492492349,0.1376,3640.7,3640.4,2.74694184]
[1754492492556,0.04,3640.9,3640.6,2.74672515]
[1754492492755,0.04,3640.9,3640.7,3.66867144]
[1754492492957,0.04,3640.9,3640.7,0.4454]
[1754492493157,0.04,3640.9,3640.5,0.1376]
[1754492493350,0.04,3640.9,3640.7,2.7467214]
[1754492493946,0.04,3640.9,3640.5,0.1376]
[1754492494164,2.7466648,3640.8,3640.0,3.19263794]
[1754492494362,2.74688442,3640.5,3640.2,0.1376]
[1754492494546,0.1376,3640.7,3640.1,0.1376]
[1754492494749,2.74680853,3640.6,3640.1,0.1376]
[1754492494972,2.74680014,3640.6,3640.1,0.1376]
[1754492495175,2.74672453,3640.7,3640.0,0.4454]
[1754492495489,2.74672453,3640.7,3639.6,2.74754499]
[1754492495490,2.74695088,3640.4,3639.6,2.74754499]
[1754492495663,2.8847641,3640.2,3639.6,0.1376]
[1754492495863,0.1376,3640.2,3639.6,1.0596]
[1754492496064,0.1376,3640.5,3640.1,2.74711285]
[1754492496265,0.1376,3640.5,3640.2,2.74706658]
[1754492496487,0.1376,3640.5,3640.0,0.1376]
[1754492496795,0.1376,3640.5,3640.1,0.4454]
[1754492497179,0.1376,3640.5,3640.0,0.1376]
[1754492497501,2.74696804,3640.4,3640.0,0.1376]
[1754492497700,2.88454876,3640.5,3640.0,0.1376]
[1754492497904,0.4599,3640.4,3640.0,0.1376]
[1754492498101,3.20691531,3640.4,3640.0,0.1376]
[1754492498275,3.20691531,3640.4,3639.8,2.88499684]
[1754492498479,2.7470319,3640.3,3639.8,0.1376]
[1754492498668,0.4599,3640.4,3639.8,0.1376]
[1754492499019,0.1376,3640.2,3639.7,2.7474228]
[1754492499185,0.1376,3640.2,3639.6,2.88515299]
[1754492499398,0.1376,3640.2,3639.6,0.1376]
[1754492499715,0.1376,3640.2,3639.5,2.74760922]
[1754492499716,0.4599,3640.1,3639.2,2.74779254]
[1754492499885,0.1376,3639.8,3639.3,0.1376]
[1754492500209,0.9138,3639.7,3638.9,1e-08]
[1754492500412,0.1376,3639.3,3638.9,1e-08]
[1754492500612,2.74799297,3639.1,3638.9,1e-08]
[1754492500908,6.43560769,3639.0,3638.9,1e-08]
[1754492501069,7.34940769,3639.0,3638.9,1e-08]
[1754492501659,37.34940769,3639.0,3638.9,1e-08]
[1754492502609,6.34550769,3639.0,3638.9,1e-08]
[1754492502964,6.89550769,3639.0,3638.9,1e-08]
[1754492503195,7.34940769,3639.0,3638.9,1e-08]
[1754492503394,37.34940769,3639.0,3638.9,1e-08]
[1754492503670,3.29823425,3638.7,3638.6,1e-08]
[1754492503867,6.29830978,3638.6,3638.5,1e-08]
[1754492504072,37.21210978,3638.6,3638.5,1e-08]
[1754492504296,37.34970978,3638.6,3638.5,1e-08]
[1754492505221,6.29883861,3637.9,3637.8,1e-08]
[1754492505380,40.92043861,3637.9,3637.8,1e-08]
[1754492505583,41.83423861,3637.9,3637.8,1e-08]
[1754492506171,41.55923861,3637.9,3637.8,1e-08]
[1754492506984,3.29936764,3637.2,3637.1,0.04]
[1754492507169,10.91996764,3637.2,3637.1,0.04]
[1754492507368,11.83376764,3637.2,3637.1,0.04]
[1754492507885,11.37986764,3637.2,3637.1,0.04]
[1754492508578,3.1376,3637.2,3637.1,0.04]
[1754492508782,4.6256,3637.2,3637.1,0.04]
[1754492509825,4.6256,3637.2,3637.1,0.5166]
[1754492510019,4.6256,3637.2,3637.1,0.04]
[1754492510221,2.88696764,3637.2,3637.1,0.04]
[1754492510525,7.36896764,3637.2,3637.1,0.04]
[1754492510699,4.6196,3637.2,3637.1,0.04]
[1754492511104,3.0,3637.3,3637.1,0.04]
[1754492511288,4.6196,3637.2,3637.1,0.04]
[1754492511485,7.36896764,3637.2,3637.1,0.04]
[1754492511803,7.83226764,3637.2,3637.1,0.04]
[1754492512005,11.81576764,3637.2,3637.1,0.04]
[1754492512438,7.6186,3637.2,3637.1,0.04]
[1754492512587,10.36796764,3637.2,3637.1,0.04]
[1754492512929,7.6186,3637.2,3637.1,0.04]
[1754492513102,10.36796764,3637.2,3637.1,0.04]
[1754492513613,7.6186,3637.2,3637.1,0.04]
[1754492513940,10.83126764,3637.2,3637.1,0.04]
[1754492514434,11.81476764,3637.2,3637.1,0.04]
[1754492514931,5.88696764,3637.2,3637.1,0.04]
[1754492515136,10.91696764,3637.2,3637.1,0.04]
[1754492515338,11.38026764,3637.2,3637.1,0.04]
[1754492515643,41.81376764,3637.2,3637.1,0.04]
[1754492515927,11.38026764,3637.2,3637.1,0.04]
[1754492516131,41.67616764,3637.2,3637.1,0.04]
[1754492516332,35.88696764,3637.2,3637.1,0.04]
[1754492516488,10.37096764,3637.2,3637.1,0.04]
[1754492517308,0.1376,3637.2,3637.1,0.04]
[1754492517549,2.74873217,3638.1,3637.5,2.74913367]
[1754492517838,2.74873217,3638.1,3637.1,0.9552]
[1754492517839,0.1376,3637.7,3637.1,1.0928]
[1754492518054,0.1376,3637.5,3637.3,2.74928619]
[1754492518358,0.001,3638.7,3637.3,2.74928619]
[1754492518359,4.491,3637.4,3637.3,3.13348923]
[1754492518510,2.88663159,3637.7,3637.2,0.1376]
[1754492518705,2.74884871,3637.9,3637.2,0.1376]
[1754492518706,4.49,3637.6,3637.5,2.74914089]
[1754492518922,0.1376,3637.8,3637.5,0.9152]
[1754492519148,0.1376,3637.8,3637.5,0.4675]
[1754492519307,4.489,3637.8,3637.7,2.74898974]
[1754492519513,4.489,3637.8,3637.7,3.66418974]
[1754492519950,4.487,3638.2,3637.7,1.57028642]
[1754492520110,4.6246,3638.2,3637.8,0.9152]
[1754492520306,4.6246,3638.2,3637.9,0.9152]
[1754492520520,4.6246,3638.2,3637.7,0.1376]
[1754492520521,4.487,3638.2,3638.0,0.4477]
[1754492520720,2.74882786,3638.0,3637.7,0.1376]
[1754492520962,0.1376,3637.8,3637.2,0.1376]
[1754492521167,4.6236,3637.8,3637.3,0.1376]
[1754492521465,4.6236,3637.8,3637.4,3.66439426]
[1754492521673,4.6236,3637.8,3637.5,0.9152]
[1754492521864,4.6236,3637.8,3637.6,3.66421656]
[1754492522063,4.6236,3637.8,3637.6,0.9152]
[1754492522265,4.6236,3637.8,3637.6,0.4477]
[1754492522453,4.6236,3637.8,3637.3,3.35436565]
[1754492522768,4.6236,3637.8,3637.6,2.74906464]
[1754492522954,0.1376,3637.8,3637.6,0.4477]
[1754492523161,4.482,3638.0,3637.7,0.9152]
[1754492523324,4.482,3638.1,3637.3,0.4477]
[1754492523524,0.1376,3637.8,3637.3,0.5853]
[1754492523728,7.36854408,3637.8,3637.3,0.5853]
[1754492523976,4.6196,3637.8,3637.3,0.5853]
[1754492524669,4.6196,3637.8,3637.4,0.4477]
[1754492524874,2.74921507,3637.5,3637.1,0.042]
[1754492525075,7.36479045,3637.5,3637.1,0.042]
[1754492525275,5.74936764,3637.2,3637.1,0.042]
[1754492525429,10.36496764,3637.2,3637.1,0.042]
[1754492525634,11.26176764,3637.2,3637.1,0.042]
[1754492525868,10.36496764,3637.2,3637.1,0.042]
[1754492526167,10.36596764,3637.2,3637.1,0.042]
[1754492526547,10.82926764,3637.2,3637.1,0.042]
[1754492527342,11.26276764,3637.2,3637.1,0.042]
[1754492527674,11.81276764,3637.2,3637.1,0.042]
[1754492527881,3.29959443,3636.9,3636.8,1e-08]
[1754492528094,5.75012375,3636.2,3636.1,0.042]
[1754492528393,6.30019938,3636.1,3636.0,77.88374903]
[1754492528557,36.76349938,3636.1,3636.0,77.70466661]
[1754492528758,37.19699938,3636.1,3636.0,76.96103336]
[1754492528986,37.19699938,3636.1,3636.0,58.02425895]
[1754492529176,41.67199938,3636.1,3636.0,58.02425895]
[1754492529379,41.80959938,3636.1,3636.0,58.02425895]
[1754492529541,34.1509,3636.1,3636.0,58.02425895]
[1754492529748,37.6126,3636.1,3636.0,58.02425895]
[1754492530048,7.6126,3636.1,3636.0,58.02425895]
[1754492530688,7.6116,3636.1,3636.0,58.02425895]
[1754492531088,3.1376,3636.1,3636.0,58.02425895]
[1754492531256,7.6116,3636.1,3636.0,58.02425895]
[1754492531783,3.1376,3636.1,3636.0,58.02425895]
[1754492531980,4.472,3636.1,3636.0,61.08830135]
[1754492532185,4.472,3636.1,3636.0,63.83857637]
[1754492532381,4.472,3636.3,3636.2,2.75012375]
[1754492532579,4.472,3636.5,3636.2,2.75012375]
[1754492532753,4.6096,3636.6,3636.4,2.7499725]
[1754492532954,0.4633,3637.4,3636.4,0.4675]
[1754492533192,0.4633,3637.4,3636.2,2.72866186]
[1754492533193,0.1376,3636.7,3636.2,0.1376]
[1754492533406,2.75019938,3636.1,3636.0,58.02425895]
[1754492533571,38.11999938,3636.1,3636.0,58.02425895]
[1754492533912,38.23649938,3636.1,3636.0,58.02425895]
[1754492534211,0.1376,3636.1,3636.0,58.02425895]
[1754492534505,7.6096,3636.1,3636.0,58.02425895]
[1754492535303,41.37309938,3636.1,3636.0,58.02425895]
[1754492536182,41.80659938,3636.1,3636.0,58.02425895]
[1754492536387,7.6066,3636.1,3636.0,58.02425895]
[1754492536959,3.1376,3636.1,3636.0,58.02425895]
[1754492537260,7.6066,3636.1,3636.0,58.02425895]
[1754492538257,40.35479938,3636.1,3636.0,58.02425895]
[1754492538458,7.6046,3636.1,3636.0,58.02425895]
[1754492538786,40.81809938,3636.1,3636.0,58.02425895]
[1754492538983,37.6046,3636.1,3636.0,58.02425895]
[1754492539862,3.1376,3636.1,3636.0,58.47195895]
[1754492540058,4.462,3636.7,3636.1,2.75019938]
[1754492540268,4.462,3636.8,3636.3,2.75004812]
[1754492540467,3.0,3636.7,3636.4,0.9152]
[1754492540705,0.4633,3638.4,3636.5,0.9152]
[1754492540862,0.4633,3638.4,3636.0,60.75292081]
[1754492540863,0.001,3638.2,3636.6,5.3793]
[1754492541062,4.462,3638.1,3636.7,0.56542745]
[1754492541261,3.0,3638.0,3636.8,5.3803]
[1754492541576,4.462,3638.1,3636.9,5.3803]
[1754492541772,4.462,3638.1,3637.7,2.74891724]
[1754492541973,0.001,3638.2,3637.8,4.462]
[1754492542176,0.001,3638.2,3638.0,2.74876009]
[1754492542395,0.001,3638.2,3638.0,2.74870228]
[1754492542596,0.001,3638.2,3638.1,3.6659875]
[1754492543060,0.001,3638.2,3638.1,0.4454]
[1754492543609,0.001,3638.2,3638.1,3.1940875]
[1754492543791,0.001,3638.2,3638.1,3.6659875]
[1754492544115,2.74875968,3638.1,3637.6,4.465]
[1754492544261,0.001,3638.2,3637.7,0.4454]
[1754492544690,2.74966696,3638.2,3637.7,0.4454]
[1754492544864,2.74869441,3638.1,3637.7,0.4454]
[1754492545058,2.7486875,3638.1,3637.2,0.4719]
[1754492545263,0.001,3638.2,3637.2,0.4454]
[1754492545264,34.461,3638.0,3637.2,0.4454]
[1754492545475,2.74906976,3637.6,3637.2,0.4454]
[1754492545698,3.0,3637.9,3637.2,0.4454]
[1754492546007,3.0,3637.9,3637.3,3.66658815]
[1754492546185,3.0,3637.9,3637.3,0.9173]
[1754492546361,2.74894385,3637.8,3637.3,0.4454]
[1754492546557,3.0,3637.9,3637.4,2.74921389]
[1754492546852,4.465,3638.2,3637.5,0.9173]
[1754492547023,3.0,3638.1,3637.6,2.74901919]
[1754492547228,4.465,3638.2,3637.5,0.9173]
[1754492547750,0.001,3638.2,3637.6,0.94479065]
[1754492547953,0.001,3638.2,3637.9,2.74877645]
[1754492548159,0.001,3638.2,3637.8,2.74891417]
[1754492548452,0.001,3638.2,3638.1,2.7486875]
[1754492548610,0.001,3638.2,3637.9,0.9173]
[1754492549038,0.001,3638.2,3638.0,0.4454]
[1754492549732,0.001,3638.2,3638.1,0.9173]
[1754492549934,0.001,3638.2,3638.1,0.4454]
[1754492550538,0.4662,3638.2,3637.4,0.4454]
[1754492550741,2.74908018,3637.6,3637.2,0.1376]
[1754492550945,0.1376,3637.5,3637.1,0.002]
[1754492551732,0.1376,3637.5,3637.4,2.74921647]
[1754492551936,0.1376,3637.5,3637.4,4.75654796]
[1754492552261,3.1386,3638.2,3637.4,1.0549]
[1754492552636,3.0,3638.0,3637.4,0.4454]
[1754492552974,3.0,3638.0,3637.2,0.1376]
[1754492552975,2.88654249,3637.8,3637.2,0.1376]
[1754492553148,0.001,3638.2,3637.3,0.4454]
[1754492553344,0.001,3638.2,3637.4,0.1376]
[1754492553345,0.1376,3638.0,3637.4,0.1376]
[1754492553569,0.1376,3637.8,3637.3,0.1376]
[1754492554583,0.6028,3637.8,3637.3,0.1376]
[1754492554868,0.1376,3637.8,3637.3,3.33226299]
[1754492555052,0.1376,3637.8,3637.3,0.583]
[1754492555258,0.1376,3637.8,3637.3,0.1376]
[1754492555455,3.35176275,3637.8,3637.2,0.1376]
[1754492555672,0.4652,3637.8,3637.1,0.002]
[1754492555981,0.1376,3637.2,3637.1,0.002]
[1754492556490,0.1376,3637.2,3637.1,3.19684323]
[1754492556697,0.001,3638.2,3637.1,5.69098432]
[1754492556848,0.001,3638.2,3638.1,2.7486875]
[1754492557052,0.001,3638.2,3638.0,2.74869327]
[1754492557273,0.001,3638.2,3637.7,4.454]
[1754492557589,0.001,3638.2,3638.1,2.7486875]
[1754492557803,0.001,3638.2,3637.9,2.74881958]
[1754492557978,0.001,3638.2,3638.0,2.74874882]
[1754492558167,0.001,3638.2,3638.0,2.748713]
[1754492558789,0.001,3638.2,3638.1,2.7486875]
[1754492558994,0.001,3638.2,3637.7,2.74892475]
[1754492559202,0.001,3638.2,3637.9,2.74878719]
[1754492559494,0.001,3638.2,3638.0,2.74875064]
[1754492559695,0.001,3638.2,3637.5,0.4454]
[1754492559853,0.001,3638.2,3637.6,4.452]
[1754492560055,0.001,3638.2,3638.0,2.74870128]
[1754492560255,0.001,3638.2,3638.0,2.74871129]
[1754492560584,0.001,3638.2,3638.1,2.7486875]
[1754492560899,0.001,3638.2,3637.9,2.74877914]
[1754492561080,0.001,3638.2,3638.1,2.7486875]
[1754492561615,0.001,3638.2,3638.1,3.1940875]
[1754492561899,0.001,3638.2,3637.7,4.8914]
[1754492562044,0.001,3638.2,3638.1,2.7486875]
[1754492562247,0.001,3638.2,3637.7,4.8904]
[1754492562550,0.001,3638.2,3638.0,2.74876092]
[1754492562730,0.001,3638.2,3638.1,2.7486875]
[1754492563054,0.001,3638.2,3638.1,3.1940875]
[1754492563946,0.001,3638.2,3638.1,0.4454]
[1754492564317,0.001,3638.2,3638.1,3.98541783]
[1754492564523,0.001,3638.2,3638.1,3.69347437]
[1754492564945,0.001,3638.2,3638.1,3.6659875]
[1754492565537,0.001,3638.2,3638.1,3.69347437]
[1754492565737,0.001,3638.2,3638.1,3.6659875]
[1754492566416,0.001,3638.2,3638.1,8.1039875]
[1754492566614,0.001,3638.2,3638.1,0.583]
[1754492566814,0.001,3638.2,3638.1,0.1376]
[1754492567015,0.4662,3638.2,3637.8,0.1376]
[1754492567314,0.001,3638.2,3637.8,0.1376]
[1754492567512,0.001,3638.2,3637.1,0.002]
[1754492567513,30.9357,3638.1,3637.1,0.002]
[1754492567827,0.1376,3637.6,3637.1,0.002]
[1754492568030,0.1376,3637.6,3637.1,2.75141253]
[1754492568236,0.6028,3637.6,3637.1,2.75141253]
[1754492568551,0.4652,3637.5,3637.1,2.75141253]
[1754492568753,0.1376,3637.6,3637.2,2.74930578]
[1754492568909,0.1376,3637.6,3637.1,0.4474]
[1754492569249,0.6028,3637.6,3637.1,0.002]
[1754492569453,0.4652,3637.5,3637.1,0.002]
[1754492570154,0.1376,3637.6,3637.2,0.4454]
[1754492570327,0.1376,3638.0,3637.4,0.1376]
[1754492570526,0.001,3638.2,3637.5,0.9173]
[1754492570836,0.001,3638.2,3637.9,2.88642863]
[1754492571228,0.001,3638.2,3637.9,3.32482863]
[1754492571431,0.001,3638.2,3638.1,2.7486875]
[1754492571814,0.001,3638.2,3638.1,3.1870875]
[1754492572047,0.001,3638.2,3638.1,0.4384]
[1754492572229,0.001,3638.2,3637.9,0.1376]
[1754492572429,0.001,3638.2,3638.1,2.7486875]
[1754492572656,0.001,3638.2,3638.0,2.74874235]
[1754492572954,0.001,3638.2,3637.7,0.1376]
[1754492572955,0.1386,3638.2,3637.7,0.1376]
[1754492573258,0.1386,3638.2,3637.8,0.4384]
[1754492573425,0.001,3638.2,3638.1,2.7486875]
[1754492573845,0.001,3638.2,3638.1,3.1870875]
[1754492574030,0.001,3638.2,3638.1,3.3246875]
[1754492574431,0.001,3638.2,3638.1,2.8862875]
[1754492574631,0.001,3638.2,3638.1,3.9097875]
[1754492575158,0.001,3638.2,3637.7,4.428]
[1754492575363,0.001,3638.2,3638.1,2.7486875]
[1754492575560,1e-08,3638.7,3638.5,2.74838532]
[1754492575730,1e-08,3638.7,3638.6,7.18130978]
[1754492576054,1e-08,3638.9,3638.8,2.74815873]
[1754492576257,1e-08,3638.9,3638.8,4.11829411]
[1754492576479,1e-08,3638.9,3638.8,5.30687569]
[1754492576816,1e-08,3638.9,3638.8,5.27939411]
[1754492577014,1e-08,3638.9,3638.8,5.30687569]
[1754492577262,1e-08,3638.9,3638.8,5.27939411]
[1754492578568,1e-08,3638.9,3638.8,5.30687569]
[1754492578778,1e-08,3638.9,3638.8,5.27939411]
[1754492579068,1e-08,3638.9,3638.8,5.30687569]
[1754492579229,1e-08,3638.9,3638.8,5.27939411]
[1754492580459,1e-08,3638.9,3638.8,7.31175873]
[1754492580690,1e-08,3638.9,3638.8,8.33525873]
[1754492580991,1e-08,3639.0,3638.9,2.74808321]
[1754492581194,1e-08,3639.0,3638.9,2.77556404]
[1754492581494,1e-08,3639.0,3638.9,2.74808321]
[1754492581999,1.07520001,3639.0,3638.8,0.1376]
[1754492582309,1e-08,3639.0,3638.2,4.426]
[1754492582465,0.6136,3638.9,3638.6,0.1376]
[1754492582665,0.6136,3638.8,3638.6,0.1376]
[1754492583003,0.6136,3638.7,3638.6,2.88590563]
[1754492583504,0.6136,3638.7,3638.6,0.1376]
[1754492583668,0.6136,3638.7,3638.3,4.426]
[1754492583863,1.0752,3638.6,3637.9,4.426]
[1754492584099,0.1376,3638.4,3638.1,2.74863414]
[1754492584436,0.6136,3638.8,3638.3,0.1376]
[1754492584710,3.1386,3638.9,3638.7,2.74823425]
[1754492584711,0.1386,3638.9,3638.7,2.74823425]
[1754492584864,0.001,3638.9,3638.8,2.74815873]
[1754492585593,0.001,3638.9,3638.8,2.88575873]
[1754492586182,0.001,3638.9,3638.8,4.63603903]
[1754492586355,0.001,3638.9,3638.8,4.05093903]
[1754492586557,0.001,3638.9,3638.8,3.61253903]
[1754492586869,0.001,3638.9,3638.8,0.1376]
[1754492587069,0.6146,3638.9,3637.8,0.4384]
[1754492587272,0.6146,3638.9,3638.6,0.1376]
[1754492587598,0.001,3638.9,3638.8,2.74815873]
[1754492587956,0.001,3638.9,3638.7,2.74820541]
[1754492588293,0.6136,3638.8,3638.6,2.88589815]
[1754492588515,0.001,3638.9,3638.5,0.1376]
[1754492588658,0.001,3638.9,3638.7,2.88580704]
[1754492588858,0.001,3638.9,3638.4,0.1376]
[1754492589057,0.6136,3638.8,3638.4,2.88604327]
[1754492589277,0.001,3638.9,3638.4,0.1376]
[1754492589562,0.001,3638.9,3638.8,2.88575873]
[1754492590284,0.6146,3638.9,3638.4,2.74841718]
[1754492590512,0.7512,3638.8,3638.4,2.74841555]
[1754492590810,0.6136,3638.7,3638.4,2.74841555]
[1754492590958,0.1376,3638.8,3638.3,0.1376]
[1754492590959,0.6136,3638.6,3638.3,0.1376]
[1754492591163,0.6136,3638.6,3638.3,2.88612195]
[1754492591359,0.6146,3638.9,3638.4,2.74843333]
[1754492591558,0.6136,3638.8,3638.2,4.426]
[1754492591760,0.7512,3638.8,3638.3,0.1376]
[1754492592022,0.1376,3638.6,3638.3,2.74852361]
[1754492592166,0.1376,3638.6,3638.2,2.74858418]
[1754492592373,0.1376,3638.6,3638.1,0.1376]
[1754492592575,0.6136,3638.5,3638.1,0.1376]
[1754492593537,0.001,3638.9,3638.1,0.1376]
[1754492593538,0.6146,3638.9,3638.6,2.74829291]
[1754492593687,0.001,3638.9,3638.6,2.74829291]
[1754492593874,0.001,3638.9,3638.5,2.74833523]
[1754492594074,0.6146,3638.9,3638.4,2.74843639]
[1754492594373,0.6146,3638.9,3638.5,2.88597726]
[1754492594611,0.001,3638.9,3638.5,0.1376]
[1754492594920,0.6146,3638.9,3638.6,2.74830978]
[1754492595076,0.6146,3638.9,3638.6,2.74830668]
[1754492595416,0.001,3638.9,3638.8,2.74815873]
[1754492595576,0.001,3638.9,3638.7,2.74818724]
[1754492595980,0.001,3638.9,3638.5,0.1376]
[1754492596207,0.001,3638.9,3638.6,2.74830978]
[1754492596412,0.6146,3638.9,3638.6,2.74830978]
[1754492596726,0.1376,3638.7,3638.3,2.7485364]
[1754492596948,0.6136,3638.6,3638.4,2.74845404]
[1754492597098,0.1376,3638.7,3638.2,7.31219617]
[1754492597279,0.7512,3638.7,3638.4,2.74841791]
[1754492597485,0.6136,3638.6,3638.2,7.31218368]
[1754492597682,0.6136,3638.5,3638.4,2.74846086]
[1754492598011,0.60810376,3638.5,3638.4,2.74846086]
[1754492598181,0.60810376,3638.5,3638.1,4.426]
[1754492598529,0.001,3638.9,3637.9,0.002]
[1754492598681,0.1376,3638.1,3637.9,2.75083581]
[1754492598878,0.1376,3638.1,3638.0,2.74876305]
[1754492599592,0.1376,3638.1,3637.9,0.002]
[1754492599798,5.74898974,3637.7,3637.6,0.1396]
[1754492600107,1.0752,3637.7,3637.6,0.1396]
[1754492600436,1.0752,3637.7,3637.6,0.002]
[1754492600586,1.2128,3637.7,3637.6,0.002]
[1754492600932,0.7512,3637.7,3637.6,0.002]
[1754492601297,3.96188974,3637.7,3637.6,0.002]
[1754492601632,34.51188974,3637.7,3637.6,0.002]
[1754492601805,37.51188974,3637.7,3637.6,0.002]
[1754492602016,37.51188974,3637.7,3637.6,1e-08]
[1754492602217,2.74974564,3636.7,3636.6,1e-08]
[1754492602433,2.75012375,3636.2,3636.1,0.04]
[1754492602632,5.88772375,3636.2,3636.1,0.04]
[1754492602956,3.7006,3636.2,3636.1,0.04]
[1754492603280,3.45072375,3636.2,3636.1,0.04]
[1754492603668,0.7006,3636.2,3636.1,0.04]
[1754492603963,0.1376,3636.2,3636.1,0.04]
[1754492604453,3.91242375,3636.2,3636.1,0.04]
[1754492605509,0.1376,3636.2,3636.1,0.04]
[1754492605908,3.45072375,3636.2,3636.1,0.04]
[1754492606105,3.91242375,3636.2,3636.1,0.04]
[1754492606755,5.1276,3636.2,3636.1,0.04]
[1754492606907,2.74988854,3636.6,3636.1,0.04]
[1754492606908,4.427,3636.3,3636.1,0.04]
[1754492607108,2.75006014,3636.3,3636.1,0.04]
[1754492607327,0.1376,3636.4,3636.1,0.04]
[1754492607536,3.3131079,3636.3,3636.1,0.04]
[1754492607858,0.1376,3636.2,3636.1,0.04]
[1754492608508,4.427,3636.5,3636.1,0.04]
[1754492608709,0.1376,3636.3,3636.1,0.471]
[1754492608909,4.427,3636.5,3636.1,0.6086]
[1754492609124,4.427,3636.5,3636.1,0.04]
[1754492609324,0.1376,3636.3,3636.1,0.04]
[1754492610312,0.7006,3636.3,3636.1,0.04]
[1754492610536,3.31312375,3636.2,3636.1,0.04]
[1754492610741,7.32482375,3636.2,3636.1,0.04]
[1754492611954,37.32482375,3636.2,3636.1,0.04]
[1754492612258,36.86312375,3636.2,3636.1,0.04]
[1754492612469,38.54,3636.2,3636.1,0.04]
[1754492612757,41.29012375,3636.2,3636.1,0.04]
[1754492612974,41.75182375,3636.2,3636.1,0.04]
[1754492613424,38.54,3636.2,3636.1,0.04]
[1754492613760,41.29012375,3636.2,3636.1,0.04]
[1754492613917,38.54,3636.2,3636.1,0.04]
[1754492614261,7.427,3636.2,3636.1,0.04]
[1754492614663,3.0,3636.2,3636.1,2.79019938]
[1754492614846,3.0,3636.2,3636.1,0.471]
[1754492614847,4.428,3636.2,3636.1,0.471]
[1754492615172,0.4617,3637.6,3636.1,1.0805]
[1754492615330,2.74949424,3637.1,3636.3,2.74999683]
[1754492615529,3.0,3636.9,3636.4,2.74996479]
[1754492615835,3.0,3636.9,3636.5,0.431]
[1754492616040,2.75012375,3636.2,3636.1,0.04]
[1754492616253,40.72812375,3636.2,3636.1,0.04]
[1754492616558,41.75282375,3636.2,3636.1,0.04]
[1754492618008,41.29012375,3636.2,3636.1,0.04]
[1754492618467,0.563,3637.0,3636.1,0.04]
[1754492618615,34.427,3636.9,3636.1,1.0805]
[1754492618966,2.74929205,3637.3,3636.3,2.75003231]
[1754492619175,2.74929205,3637.3,3636.1,1.0805]
[1754492619176,34.428,3637.2,3636.4,5.4685]
[1754492619464,34.428,3637.2,3636.5,1.0405]
[1754492619465,4.428,3637.2,3636.5,1.0405]
[1754492619619,4.428,3637.2,3636.6,1.0405]
[1754492619818,4.428,3637.2,3637.1,2.74944323]
[1754492620015,0.001,3637.7,3637.3,2.74929001]
[1754492620222,4.429,3637.7,3637.3,0.431]
[1754492620465,4.429,3637.7,3636.9,1.0405]
[1754492620466,3.0,3637.6,3636.9,1.0405]
[1754492620671,4.429,3637.7,3637.3,0.431]
[1754492620821,7.17802864,3637.7,3637.0,2.74949114]
[1754492621018,3.0,3637.6,3636.9,0.431]
[1754492621257,2.74935841,3637.3,3636.5,4.428]
[1754492621461,4.428,3637.2,3636.7,2.74974555]
[1754492621659,4.428,3637.2,3636.8,2.74965541]
[1754492621860,4.428,3637.2,3636.6,2.74980543]
[1754492622172,4.428,3637.2,3636.7,2.74972712]
[1754492622373,4.428,3637.2,3636.6,2.74980496]
[1754492622519,4.427,3637.2,3636.8,1.0405]
[1754492622862,0.001,3637.7,3637.6,2.74906531]
[1754492623062,0.001,3637.7,3637.2,0.431]
[1754492623264,0.001,3637.7,3637.4,2.74921594]
[1754492623563,3.001,3637.7,3636.7,0.6095]
[1754492623733,0.563,3637.6,3636.7,2.74973533]
[1754492623939,0.563,3637.6,3636.8,2.74964322]
[1754492624260,0.563,3637.6,3636.0,58.02425895]
[1754492624261,2.74962037,3636.9,3636.0,58.02425895]